bitfinex-derivatives/quotes_BTCF0:USTF0_20241223
["timestamp","ask_amount","ask_price","bid_price","bid_amount"]
[1734914306519,0.01,94630.0,94617.0,0.1515]
[1734914306520,0.01,94637.0,94627.0,0.052884]
[1734914307115,0.052879,94636.0,94626.0,0.3608]
[1734914307314,0.001,94618.0,94617.0,0.1515]
[1734914309125,0.001,94618.0,94617.0,0.204389]
[1734914309321,0.052874,94645.0,94617.0,0.1515]
[1734914309626,0.01,94635.0,94630.0,0.10732208]
[1734914309827,0.005,94637.0,94630.0,0.10732208]
[1734914310218,0.01,94640.0,94630.0,0.10732208]
[1734914310414,0.42142716,94649.0,94630.0,0.10732208]
[1734914310713,0.01,94640.0,94630.0,0.10732208]
[1734914310918,0.01,94640.0,94630.0,0.11032208]
[1734914311424,0.01,94640.0,94631.0,0.1481]
[1734914311828,0.01,94640.0,94631.0,0.3084]
[1734914312218,0.01,94640.0,94630.0,0.003]
[1734914313228,0.01,94640.0,94631.0,0.006]
[1734914314028,0.3608,94641.0,94630.0,0.11332208]
[1734914314323,0.3608,94641.0,94639.0,0.052877]
[1734914314528,0.3608,94641.0,94640.0,0.1495]
[1734914314729,0.3608,94650.0,94640.0,0.1495]
[1734914314932,0.3608,94650.0,94647.0,0.052872]
[1734914315228,0.01,94656.0,94641.0,0.1602]
[1734914315431,0.01,94656.0,94640.0,0.51086]
[1734914315620,0.01,94656.0,94641.0,1.5]
[1734914315822,0.01,94656.0,94640.0,0.5103]
[1734914316027,0.01,94642.0,94640.0,0.61762208]
[1734914316220,0.01,94642.0,94640.0,0.5103]
[1734914316832,0.01,94642.0,94640.0,0.1495]
[1734914317025,0.01,94642.0,94640.0,0.1505]
[1734914317329,0.01,94642.0,94641.0,0.052876]
[1734914317629,0.01,94642.0,94641.0,0.068756]
[1734914318220,0.01,94642.0,94641.0,0.429556]
[1734914318418,0.01,94655.0,94643.0,0.052875]
[1734914318622,0.01,94657.0,94651.0,0.3608]
[1734914318822,0.01,94653.0,94645.0,0.16019608]
[1734914320528,0.01,94653.0,94645.0,0.10732208]
[1734914320832,0.011,94653.0,94645.0,0.10732208]
[1734914321221,0.1745,94653.0,94645.0,0.10732208]
[1734914323441,0.011,94653.0,94647.0,0.052872]
[1734914323630,0.01,94649.0,94646.0,0.052873]
[1734914324830,0.011,94649.0,94646.0,0.052873]
[1734914326829,0.011,94649.0,94639.0,0.10732208]
[1734914327030,0.01,94639.0,94638.0,0.052877]
[1734914329038,0.01,94639.0,94634.0,0.01054149]
[1734914329632,0.3608,94637.0,94634.0,0.01054149]
[1734914330036,0.3608,94637.0,94635.0,0.052879]
[1734914330238,0.01,94639.0,94638.0,0.052878]
[1734914331338,0.01,94639.0,94634.0,0.01354149]
[1734914331637,0.01,94639.0,94638.0,0.002]
[1734914333240,0.01,94639.0,94638.0,0.001]
[1734914335538,0.01,94639.0,94638.0,1.501]
[1734914336627,0.01,94639.0,94638.0,0.001]
[1734914336827,0.01,94640.0,94638.0,0.001]
[1734914337037,0.01,94640.0,94639.0,0.052877]
[1734914338438,0.01,94640.0,94638.0,0.001]
[1734914338941,0.01,94640.0,94639.0,0.001]
[1734914340438,0.01,94640.0,94638.0,0.052877]
[1734914340635,0.01,94640.0,94638.0,0.054877]
[1734914341230,0.10482716,94640.0,94639.0,0.25439838]
[1734914341945,0.10482716,94640.0,94639.0,0.25339838]
[1734914342241,0.01,94640.0,94638.0,0.053877]
[1734914343941,0.01,94640.0,94635.0,0.3153418]
[1734914344149,0.01,94640.0,94639.0,0.001]
[1734914344546,0.01,94640.0,94635.0,0.3153418]
[1734914344743,0.01,94640.0,94638.0,0.001]
[1734914344945,0.01,94640.0,94638.0,0.25444721]
[1734914345140,0.01,94640.0,94638.0,0.25344721]
[1734914345345,0.01,94640.0,94639.0,0.001]
[1734914346345,0.01,94640.0,94639.0,0.19108544]
[1734914347553,0.01,94640.0,94639.0,0.19008544]
[1734914347738,0.10503856,94640.0,94639.0,0.25344721]
[1734914348657,0.10503856,94640.0,94639.0,0.25444721]
[1734914348862,0.09503856,94640.0,94639.0,0.41104721]
[1734914349058,0.09503856,94641.0,94640.0,0.052877]
[1734914349359,0.09503856,94641.0,94640.0,1.552877]
[1734914350556,0.10307808,94649.0,94648.0,0.052872]
[1734914350759,0.10307808,94649.0,94640.0,1.72436818]
[1734914350760,0.01,94641.0,94640.0,1.72436818]
[1734914350968,0.01,94641.0,94640.0,0.22436818]
[1734914351157,0.01,94641.0,94640.0,0.27724518]
[1734914351563,0.01,94641.0,94640.0,0.27824518]
[1734914351864,0.09503856,94649.0,94643.0,0.052875]
[1734914352059,0.1576757,94651.0,94647.0,0.052873]
[1734914352255,0.1576757,94651.0,94644.0,0.1496]
[1734914353064,0.10502273,94652.0,94650.0,0.25343133]
[1734914354368,0.09502273,94651.0,94650.0,0.25343133]
[1734914354765,0.09502273,94651.0,94650.0,0.30630233]
[1734914355560,0.014,94652.0,94650.0,0.052871]
[1734914356968,0.01,94652.0,94651.0,1.81678916]
[1734914357158,0.01,94652.0,94651.0,0.31678916]
[1734914357662,0.013,94652.0,94651.0,0.33266916]
[1734914357862,0.013,94652.0,94651.0,0.31678916]
[1734914358766,0.013,94652.0,94651.0,0.33266916]
[1734914359165,0.013,94652.0,94651.0,0.31678916]
[1734914359362,0.013,94652.0,94650.0,0.31678916]
[1734914359667,0.05287,94651.0,94650.0,0.31678916]
[1734914359972,0.52797,94651.0,94650.0,0.31678916]
[1734914360165,0.013,94652.0,94650.0,0.31678916]
[1734914360371,0.003,94652.0,94650.0,0.31678916]
[1734914360668,0.003,94652.0,94650.0,0.36966016]
[1734914360669,0.01,94652.0,94650.0,0.36966016]
[1734914360861,0.013,94652.0,94651.0,0.1551]
[1734914361061,0.12969697,94652.0,94651.0,0.1551]
[1734914361475,0.12969697,94652.0,94651.0,0.5159]
[1734914362256,0.01,94657.0,94656.0,0.052868]
[1734914362472,0.46880208,94690.0,94662.0,0.052864]
[1734914362473,0.09493831,94664.0,94662.0,0.052864]
[1734914362661,0.09493831,94664.0,94663.0,0.5225]
[1734914363062,0.1576757,94675.0,94663.0,0.64357163]
[1734914363262,0.1576757,94675.0,94671.0,0.413659]
[1734914364063,0.01,94680.0,94674.0,0.052858]
[1734914364259,0.01,94680.0,94679.0,0.3608]
[1734914364872,0.01,94680.0,94679.0,0.413655]
[1734914365677,0.01,94680.0,94679.0,2.16636739]
[1734914366572,0.013,94680.0,94679.0,2.16636739]
[1734914367466,0.013,94680.0,94679.0,0.66636739]
[1734914367976,0.013,94680.0,94679.0,0.3608]
[1734914368573,0.013,94680.0,94676.0,0.25271239]
[1734914368875,0.3608,94677.0,94676.0,0.25271239]
[1734914369071,0.3608,94677.0,94674.0,0.25271239]
[1734914369072,0.052857,94676.0,94674.0,0.25271239]
[1734914369278,0.205057,94676.0,94674.0,0.25271239]
[1734914369677,0.06286,94669.0,94668.0,0.31589049]
[1734914369974,0.052864,94663.0,94662.0,0.38034615]
[1734914370178,0.062871,94650.0,94644.0,0.1614]
[1734914370472,0.052873,94646.0,94644.0,0.1614]
[1734914370881,0.062879,94635.0,94634.0,9.501e-05]
[1734914371477,0.362879,94635.0,94634.0,9.501e-05]
[1734914371680,0.062885,94625.0,94624.0,0.44356002]
[1734914371878,0.423685,94625.0,94624.0,0.44356002]
[1734914372174,0.052889,94617.0,94616.0,0.18935096]
[1734914372373,0.413689,94617.0,94616.0,0.18935096]
[1734914372576,0.41378401,94617.0,94616.0,0.18935096]
[1734914373176,0.41378401,94617.0,94592.0,0.052903]
[1734914373177,0.01,94599.0,94592.0,0.052903]
[1734914373378,0.3708,94599.0,94591.0,0.1463]
[1734914373577,0.0529,94598.0,94591.0,0.1463]
[1734914373778,0.052901,94596.0,94587.0,0.158]
[1734914373980,0.3608,94591.0,94587.0,0.158]
[1734914374573,0.01,94589.0,94587.0,0.158]
[1734914376670,0.01,94589.0,94587.0,0.167]
[1734914377669,0.01,94589.0,94587.0,0.158]
[1734914377867,0.011,94589.0,94587.0,0.167]
[1734914379167,0.063905,94589.0,94587.0,0.167]
[1734914380083,0.063905,94589.0,94587.0,0.009]
[1734914380581,0.01,94556.0,94544.0,0.05293]
[1734914380781,0.01,94556.0,94546.0,1.5]
[1734914381184,0.01,94556.0,94547.0,0.052929]
[1734914381682,0.00010888,94555.0,94547.0,0.052929]
[1734914383785,0.00110888,94555.0,94547.0,0.061929]
[1734914386877,0.00010888,94555.0,94547.0,0.052929]
[1734914387078,0.00110888,94555.0,94547.0,0.061929]
[1734914388490,0.00076,94560.0,94554.0,0.3608]
[1734914388790,0.3608,94581.0,94554.0,0.3608]
[1734914388977,0.3608,94581.0,94570.0,0.10732208]
[1734914389174,0.3608,94591.0,94578.0,0.3608]
[1734914389389,0.3608,94591.0,94579.0,0.052911]
[1734914389581,8.019e-05,94590.0,94579.0,0.052911]
[1734914390480,0.052896,94605.0,94589.0,0.3608]
[1734914390687,0.052896,94605.0,94600.0,0.3608]
[1734914391188,0.01030363,94610.0,94600.0,0.3608]
[1734914391485,0.052891,94615.0,94600.0,0.3608]
[1734914391690,0.052892,94613.0,94600.0,0.3608]
[1734914392078,0.10732208,94610.0,94600.0,0.3608]
[1734914392284,0.10732208,94610.0,94592.0,0.3608]
[1734914392285,0.052903,94593.0,94592.0,0.3608]
[1734914392677,0.052903,94593.0,94584.0,0.3608]
[1734914392988,0.052893,94612.0,94599.0,0.052899]
[1734914393193,0.052893,94611.0,94607.0,0.3608]
[1734914393484,0.30158635,94608.0,94607.0,0.3608]
[1734914393687,0.052898,94601.0,94600.0,0.006]
[1734914393895,0.052903,94593.0,94592.0,0.3608]
[1734914396383,0.01080962,94598.0,94580.0,0.46812208]
[1734914396592,0.052905,94589.0,94580.0,0.46812208]
[1734914396989,0.0529,94598.0,94588.0,0.413705]
[1734914397189,0.00158635,94608.0,94597.0,0.3608]
[1734914397393,0.00158635,94608.0,94598.0,0.10732208]
[1734914397590,0.00158635,94608.0,94603.0,0.3608]
[1734914398183,0.00158635,94608.0,94599.0,0.1498]
[1734914398895,0.05448135,94608.0,94599.0,0.1498]
[1734914400499,0.05448135,94608.0,94599.0,0.1518]
[1734914400800,0.05448135,94608.0,94599.0,0.1498]
[1734914400989,0.05448135,94608.0,94599.0,0.1508]
[1734914402990,0.05448135,94608.0,94599.0,0.1498]
[1734914403290,0.05448135,94608.0,94599.0,0.1508]
[1734914406903,0.00158635,94608.0,94599.0,0.1508]
[1734914408004,0.052897,94604.0,94599.0,0.1508]
[1734914409695,0.00158635,94608.0,94602.0,0.052897]
[1734914410403,0.00158635,94608.0,94604.0,0.052896]
[1734914413002,0.00258635,94608.0,94604.0,0.052896]
[1734914415509,0.1880936,94617.0,94610.0,0.052893]
[1734914415697,0.00796612,94635.0,94616.0,0.3608]
[1734914415893,0.052872,94649.0,94629.0,0.413683]
[1734914416100,0.052872,94649.0,94629.0,1.913683]
[1734914416299,0.2115365,94646.0,94635.0,0.052879]
[1734914416499,0.2115365,94646.0,94635.0,0.413679]
[1734914417806,0.00158584,94642.0,94637.0,0.052878]
[1734914418800,0.00158584,94642.0,94635.0,0.3608]
[1734914419001,0.00158584,94642.0,94635.0,0.37668]
[1734914419201,0.00158584,94642.0,94640.0,0.052876]
[1734914419905,0.3608,94679.0,94641.0,0.11418189]
[1734914420111,0.3608,94679.0,94669.0,0.10732208]
[1734914420311,0.3714315,94679.0,94669.0,0.10732208]
[1734914421011,0.41579394,94690.0,94676.0,0.413656]
[1734914421204,0.003,94679.0,94677.0,0.10732208]
[1734914421407,0.003,94679.0,94678.0,0.052855]
[1734914422308,0.00158493,94690.0,94678.0,0.052855]
[1734914422309,0.00158493,94690.0,94688.0,0.05285]
[1734914422605,0.00158493,94690.0,94689.0,0.5228]
[1734914422914,0.1,94700.0,94689.0,0.5228]
[1734914422915,0.1,94700.0,94689.0,0.53868]
[1734914423104,0.1,94700.0,94699.0,0.3608]
[1734914425108,0.152843,94700.0,94699.0,0.3608]
[1734914425817,0.1,94700.0,94680.0,0.3608]
[1734914426007,0.052852,94685.0,94680.0,0.3608]
[1734914427100,0.052852,94685.0,94680.0,0.3668]
[1734914427811,0.052852,94685.0,94680.0,0.3608]
[1734914428014,0.052852,94685.0,94680.0,0.3668]
[1734914428315,0.052852,94685.0,94680.0,0.006]
[1734914429398,0.052854,94681.0,94680.0,0.006]
[1734914430406,0.052854,94681.0,94669.0,0.3608]
[1734914430610,0.052854,94681.0,94680.0,0.003]
[1734914431206,0.052854,94681.0,94680.0,0.002]
[1734914432802,0.01078755,94690.0,94680.0,0.002]
[1734914433009,0.052848,94691.0,94680.0,0.16278712]
[1734914433208,0.052848,94691.0,94678.0,0.052855]
[1734914433414,0.052848,94691.0,94680.0,0.002]
[1734914433917,0.052848,94691.0,94680.0,1.5]
[1734914434119,0.052848,94691.0,94677.0,0.3608]
[1734914434307,0.219444,94699.0,94687.0,0.3608]
[1734914434709,0.052845,94697.0,94687.0,0.3608]
[1734914436115,0.052845,94697.0,94688.0,0.052849]
[1734914436811,0.053845,94697.0,94688.0,0.052849]
[1734914437215,0.053845,94697.0,94687.0,0.3608]
[1734914437216,0.001,94697.0,94687.0,0.3608]
[1734914437411,0.052849,94690.0,94687.0,0.3608]
[1734914438014,0.002,94697.0,94687.0,0.3608]
[1734914439318,0.001,94690.0,94687.0,0.3608]
[1734914439822,0.001,94690.0,94689.0,0.052849]
[1734914440022,0.001,94697.0,94689.0,0.052849]
[1734914440413,0.001,94697.0,94696.0,0.3608]
[1734914440726,0.052843,94701.0,94696.0,0.3608]
[1734914441020,0.052837,94712.0,94698.0,0.052844]
[1734914441323,0.06345385,94712.0,94698.0,0.052844]
[1734914442217,0.01061685,94712.0,94696.0,0.3608]
[1734914442422,0.052839,94708.0,94696.0,0.3608]
[1734914442715,0.052841,94704.0,94696.0,0.3608]
[1734914442922,0.002,94697.0,94688.0,0.3608]
[1734914443127,0.05285,94689.0,94688.0,0.3608]
[1734914443513,0.05285,94689.0,94673.0,0.052858]
[1734914443710,0.052852,94685.0,94673.0,0.052858]
[1734914444326,0.052852,94685.0,94670.0,0.33246712]
[1734914444327,0.413647,94694.0,94670.0,0.33246712]
[1734914444528,0.413647,94694.0,94687.0,0.3608]
[1734914444822,0.3608,94694.0,94689.0,0.052849]
[1734914446717,0.3628,94694.0,94689.0,0.052849]
[1734914447725,0.3628,94694.0,94691.0,0.052848]
[1734914448325,0.48850017,94694.0,94691.0,0.052848]
[1734914449026,0.4964265,94694.0,94691.0,0.052848]
[1734914449224,0.00792633,94693.0,94691.0,0.052848]
[1734914449419,0.00792633,94692.0,94691.0,0.052848]
[1734914449612,0.12570017,94692.0,94691.0,0.052848]
[1734914449919,0.12570017,94692.0,94691.0,0.06365685]
[1734914450120,0.12570017,94692.0,94691.0,0.42445685]
[1734914450320,0.12570017,94692.0,94691.0,1.92445685]
[1734914450718,0.003,94692.0,94691.0,1.92445685]
[1734914451219,0.003,94692.0,94691.0,0.3608]
[1734914451723,0.01093444,94692.0,94691.0,0.3608]
[1734914451928,0.003,94692.0,94691.0,0.3608]
[1734914457915,0.003,94692.0,94691.0,0.37668]
[1734914458518,0.003,94692.0,94691.0,0.3608]
[1734914458715,0.003,94692.0,94691.0,0.37668]
[1734914458915,0.003,94692.0,94691.0,0.5225]
[1734914459417,0.003,94692.0,94691.0,0.53838]
[1734914460021,0.003,94692.0,94691.0,2.39918]
[1734914461020,0.003,94692.0,94691.0,2.2216]
[1734914461227,0.003,94692.0,94691.0,0.7216]
[1734914463030,0.003,94692.0,94691.0,0.91015934]
[1734914464428,0.003,94692.0,94691.0,0.7216]
[1734914466229,0.003,94692.0,94691.0,0.9721694]
[1734914467237,0.003,94692.0,94691.0,1.1354694]
[1734914467733,0.003,94692.0,94691.0,0.8849]
[1734914469735,0.15782584,94711.0,94703.0,0.052842]
[1734914469932,0.15782584,94711.0,94710.0,0.413638]
[1734914470133,0.15782584,94711.0,94710.0,0.774438]
[1734914470328,0.15782584,94711.0,94710.0,2.274438]
[1734914470533,0.15782584,94711.0,94710.0,2.39407907]
[1734914470730,0.18794334,94718.0,94717.0,0.052834]
[1734914470928,0.18794334,94718.0,94710.0,2.22224]
[1734914471129,0.18794334,94718.0,94710.0,0.73191805]
[1734914471443,0.052836,94714.0,94710.0,0.7216]
[1734914471735,0.052837,94711.0,94710.0,0.7216]
[1734914472129,0.052837,94711.0,94710.0,0.7226]
[1734914472730,0.052837,94711.0,94710.0,0.3618]
[1734914473046,0.052837,94711.0,94710.0,0.001]
[1734914473232,0.05284,94707.0,94706.0,0.18970613]
[1734914474540,0.052842,94703.0,94697.0,0.18970613]
[1734914475343,0.3608,94709.0,94697.0,0.18970613]
[1734914475344,0.052845,94698.0,94697.0,0.18970613]
[1734914475731,0.3608,94700.0,94693.0,0.25294151]
[1734914475936,0.3608,94700.0,94676.0,1.51652]
[1734914475937,0.052851,94686.0,94685.0,0.31527702]
[1734914476136,0.3608,94686.0,94679.0,0.01305733]
[1734914476341,0.052855,94680.0,94679.0,0.01295733]
[1734914476542,0.052857,94676.0,94668.0,0.43764632]
[1734914476842,0.052864,94663.0,94651.0,0.00064]
[1734914477045,0.06074029,94663.0,94650.0,0.63429717]
[1734914477346,0.052871,94651.0,94650.0,0.00064]
[1734914477542,0.7216,94651.0,94626.0,0.44272829]
[1734914477840,0.052884,94628.0,94626.0,0.44272829]
[1734914478747,0.052884,94628.0,94621.0,0.16224]
[1734914479046,0.052884,94628.0,94621.0,0.1616]
[1734914480743,0.3608,94630.0,94617.0,1.50064]
[1734914480932,0.052884,94629.0,94626.0,0.005]
[1734914481438,0.3,94629.0,94603.0,0.4661]
[1734914481745,0.3608,94619.0,94603.0,0.30742679]
[1734914481943,0.3608,94619.0,94603.0,0.66822679]
[1734914482240,0.06967433,94628.0,94612.0,0.3608]
[1734914482541,0.06967433,94628.0,94622.0,0.052887]
[1734914483345,9.663e-05,94628.0,94623.0,0.3608]
[1734914485043,9.663e-05,94628.0,94623.0,0.3648]
[1734914485249,9.663e-05,94628.0,94624.0,0.052886]
[1734914485638,9.663e-05,94628.0,94627.0,1.5]
[1734914487142,0.05298063,94628.0,94627.0,1.5]
[1734914487359,0.052886,94624.0,94623.0,0.3648]
[1734914488248,0.052886,94624.0,94613.0,1.5]
[1734914488249,0.052886,94624.0,94613.0,1.50064]
[1734914488447,0.09411665,94625.0,94616.0,0.052891]
[1734914488744,0.09411665,94625.0,94623.0,0.052887]
[1734914489044,0.09411665,94626.0,94623.0,0.056887]
[1734914489839,9.663e-05,94628.0,94623.0,0.056887]
[1734914490447,9.663e-05,94628.0,94623.0,0.004]
[1734914490645,0.052886,94624.0,94623.0,0.004]
[1734914490840,0.052892,94615.0,94612.0,0.3608]
[1734914491441,0.052885,94626.0,94623.0,0.004]
[1734914491747,0.06354145,94624.0,94623.0,0.004]
[1734914492251,0.06354145,94624.0,94612.0,0.3678]
[1734914492252,0.052888,94621.0,94612.0,0.3678]
[1734914492742,0.052888,94621.0,94612.0,0.3608]
[1734914493544,0.052895,94609.0,94608.0,0.3608]
[1734914493851,0.052897,94605.0,94603.0,0.151]
[1734914495050,0.052897,94605.0,94603.0,0.16]
[1734914495654,0.052897,94605.0,94603.0,0.156]
[1734914496849,0.00064,94606.0,94603.0,0.156]
[1734914497045,0.3608,94615.0,94601.0,0.26831009]
[1734914497236,0.3608,94615.0,94607.0,0.052896]
[1734914497643,0.01054983,94619.0,94607.0,0.052896]
[1734914497837,0.18951885,94623.0,94607.0,0.052896]
[1734914498340,0.3608,94608.0,94604.0,1.50072]
[1734914498649,0.052895,94609.0,94604.0,1.5]
[1734914499249,0.09396117,94612.0,94604.0,1.5]
[1734914499852,0.41425001,94618.0,94604.0,1.5]
[1734914500053,0.41369,94618.0,94604.0,1.5]
[1734914500245,0.41369,94618.0,94605.0,0.1568]
[1734914500546,0.41369,94618.0,94606.0,0.052896]
[1734914500741,0.41369,94618.0,94606.0,0.205696]
[1734914500942,0.15689156,94615.0,94606.0,0.205696]
[1734914501744,0.052895,94609.0,94606.0,0.1528]
[1734914502151,0.20978656,94609.0,94606.0,0.1528]
[1734914502360,0.052896,94608.0,94606.0,0.1528]
[1734914503055,0.51825157,94609.0,94605.0,0.1568]
[1734914503254,0.052896,94606.0,94605.0,0.1568]
[1734914503655,0.052899,94601.0,94600.0,0.03461331]
[1734914503851,0.413699,94601.0,94600.0,0.03461331]
[1734914504056,0.3608,94601.0,94600.0,0.03461331]
[1734914504658,0.42565812,94601.0,94600.0,0.03461331]
[1734914505256,0.42565812,94601.0,94600.0,0.03661331]
[1734914505848,0.63719462,94601.0,94600.0,0.03661331]
[1734914506545,0.27639462,94601.0,94600.0,0.03661331]
[1734914506954,0.48799391,94601.0,94600.0,0.03661331]
[1734914508151,0.48799391,94601.0,94597.0,0.00700749]
[1734914508152,0.84879391,94601.0,94597.0,0.00700749]
[1734914508352,0.59679391,94601.0,94593.0,0.1572]
[1734914508550,0.23599391,94601.0,94599.0,0.0529]
[1734914508756,0.23599391,94601.0,94600.0,1.5]
[1734914508957,0.59679391,94601.0,94585.0,0.068788]
[1734914509164,0.052903,94594.0,94585.0,0.068788]
[1734914509458,0.052903,94594.0,94587.0,1.5]
[1734914509765,0.052904,94593.0,94587.0,0.00064]
[1734914509958,0.052911,94581.0,94574.0,0.3608]
[1734914510149,0.052911,94580.0,94574.0,0.3608]
[1734914511049,0.052911,94580.0,94570.0,0.11780934]
[1734914511252,0.3608,94573.0,94571.0,0.052916]
[1734914511453,0.3608,94573.0,94571.0,0.207916]
[1734914511756,0.3608,94581.0,94579.0,0.052911]
[1734914511963,0.052906,94590.0,94577.0,0.3608]
[1734914512852,0.052906,94590.0,94580.0,0.05291]
[1734914514156,0.052906,94590.0,94580.0,0.16026877]
[1734914514956,0.18958405,94582.0,94580.0,0.16026877]
[1734914515155,0.18958405,94582.0,94580.0,0.05291]
[1734914515356,0.18958405,94582.0,94580.0,0.05691]
[1734914515557,0.18958405,94582.0,94581.0,1.5]
[1734914516060,0.00011575,94592.0,94581.0,1.5]
[1734914516061,0.18959638,94583.0,94582.0,0.05291]
[1734914517563,0.1580102,94591.0,94590.0,0.052905]
[1734914519166,0.00011575,94592.0,94590.0,0.052905]
[1734914519167,0.15812595,94592.0,94590.0,0.052905]
[1734914519467,0.052905,94591.0,94590.0,0.005]
[1734914520755,0.00011575,94592.0,94590.0,0.005]
[1734914520756,0.00011575,94592.0,94590.0,0.057905]
[1734914521565,0.00011575,94592.0,94590.0,0.056905]
[1734914521872,0.05302075,94592.0,94590.0,0.004]
[1734914522070,0.05302075,94592.0,94582.0,0.05291]
[1734914522264,0.3608,94588.0,94581.0,0.10735877]
[1734914522569,0.052912,94579.0,94573.0,1.5]
[1734914522870,0.3608,94578.0,94571.0,0.20420347]
[1734914523057,0.3608,94578.0,94571.0,0.052916]
[1734914523567,0.3608,94578.0,94576.0,0.052913]
[1734914524768,0.05748596,94577.0,94576.0,0.052913]
[1734914525265,0.05748596,94577.0,94576.0,0.057913]
[1734914525768,0.3608,94586.0,94580.0,0.052911]
[1734914526970,0.3608,94586.0,94576.0,0.00653978]
[1734914527863,0.15819277,94581.0,94576.0,0.00653978]
[1734914528062,0.15819277,94581.0,94580.0,0.052911]
[1734914528667,0.15819277,94581.0,94580.0,0.055911]
[1734914529265,0.51899277,94586.0,94583.0,0.052909]
[1734914529570,0.51899277,94586.0,94585.0,0.052908]
[1734914529973,0.51899277,94586.0,94580.0,0.003]
[1734914530172,0.51899277,94586.0,94580.0,0.01358343]
[1734914530463,0.51899277,94586.0,94580.0,0.003]
[1734914530669,0.052909,94584.0,94580.0,0.003]
[1734914531068,0.05291,94581.0,94580.0,0.003]
[1734914531574,0.3608,94586.0,94580.0,0.003]
[1734914531769,0.413708,94586.0,94583.0,0.001]
[1734914532270,0.3608,94586.0,94583.0,0.001]
[1734914532968,0.3608,94586.0,94580.0,0.053911]
[1734914533371,0.05291,94583.0,94580.0,0.001]
[1734914533562,0.05291,94581.0,94580.0,0.001]
[1734914534572,0.05291,94581.0,94575.0,0.01066222]
[1734914534873,0.05291,94581.0,94571.0,0.052915]
[1734914535264,0.05291,94581.0,94580.0,0.002]
[1734914536471,0.05291,94581.0,94575.0,0.005]
[1734914537573,0.052912,94579.0,94575.0,0.005]
[1734914538072,0.052912,94579.0,94572.0,1.50056]
[1734914538073,0.09501647,94576.0,94573.0,0.01588]
[1734914538277,0.09501647,94576.0,94572.0,1.50056]
[1734914538466,0.09501647,94576.0,94572.0,1.5]
[1734914538664,0.09501647,94576.0,94575.0,0.004]
[1734914538665,0.14792947,94576.0,94575.0,0.004]
[1734914538869,0.052913,94576.0,94575.0,0.004]
[1734914539269,0.052913,94576.0,94573.0,0.004]
[1734914539670,0.1629,94578.0,94573.0,0.004]
[1734914539880,0.12668863,94579.0,94577.0,0.052912]
[1734914540072,0.21123416,94585.0,94577.0,0.052912]
[1734914540073,0.15832516,94582.0,94577.0,0.052912]
[1734914541276,0.15832516,94582.0,94572.0,1.60791877]
[1734914541277,0.15832516,94582.0,94578.0,0.052912]
[1734914541670,0.12673044,94581.0,94578.0,0.052912]
[1734914542878,0.12773044,94581.0,94578.0,0.060912]
[1734914544276,0.12673044,94579.0,94578.0,0.060912]
[1734914545370,0.12773044,94579.0,94578.0,0.060912]
[1734914545778,0.001,94579.0,94578.0,0.060912]
[1734914548579,0.001,94579.0,94578.0,0.008]
[1734914549479,0.17964144,94580.0,94579.0,0.052911]
[1734914549480,0.12673044,94580.0,94579.0,0.052911]
[1734914552074,0.414348,94585.0,94579.0,0.052911]
[1734914552075,0.57267316,94585.0,94579.0,0.052911]
[1734914552271,0.57203316,94585.0,94579.0,0.052911]
[1734914552483,0.56923076,94585.0,94579.0,0.056911]
[1734914552876,0.4109056,94585.0,94579.0,0.052911]
[1734914553075,0.4109056,94585.0,94579.0,0.3102712]
[1734914553475,0.3579976,94585.0,94579.0,0.3102712]
[1734914553677,0.3579976,94585.0,94580.0,0.052911]
[1734914553883,0.3579976,94585.0,94583.0,0.052909]
[1734914554079,0.51632276,94585.0,94583.0,0.052909]
[1734914555582,0.12685664,94584.0,94583.0,0.052909]
[1734914555987,0.12685664,94584.0,94583.0,0.054909]
[1734914556175,0.12685664,94584.0,94583.0,0.002]
[1734914556983,0.3579976,94585.0,94583.0,0.002]
[1734914557376,0.4109066,94585.0,94583.0,0.002]
[1734914558180,0.05623103,94584.0,94583.0,0.002]
[1734914558685,0.05623103,94584.0,94576.0,0.01588]
[1734914558873,0.10914003,94584.0,94583.0,0.002]
[1734914559273,0.10914003,94584.0,94576.0,0.068793]
[1734914559484,0.10914003,94584.0,94583.0,0.002]
[1734914560678,0.46994003,94584.0,94583.0,0.002]
[1734914561180,0.05291,94582.0,94576.0,0.073793]
[1734914561588,0.41771103,94584.0,94576.0,0.073793]
[1734914561778,0.41703103,94584.0,94576.0,0.02088]
[1734914562397,0.052913,94577.0,94576.0,0.02088]
[1734914562688,0.052913,94577.0,94576.0,0.01588]
[1734914562885,0.052913,94577.0,94573.0,0.2533602]
[1734914563286,0.052913,94577.0,94576.0,0.003]
[1734914563586,0.0608024,94577.0,94576.0,0.003]
[1734914563783,0.0608024,94577.0,94566.0,0.31610523]
[1734914563784,0.052918,94567.0,94566.0,0.31610523]
[1734914564086,0.413718,94567.0,94566.0,0.06010523]
[1734914565190,0.41385461,94567.0,94566.0,0.06010523]
[1734914565392,0.41713715,94567.0,94547.0,0.01043526]
[1734914565588,0.3608,94548.0,94542.0,0.1662]
[1734914565890,0.3608,94548.0,94534.0,0.37959181]
[1734914565891,0.052933,94541.0,94534.0,0.37959181]
[1734914566092,0.052933,94541.0,94534.0,0.38998799]
[1734914566295,0.052934,94540.0,94534.0,0.38998799]
[1734914566477,0.3608,94539.0,94534.0,0.37959181]
[1734914566792,0.052936,94535.0,94529.0,0.1691]
[1734914567195,0.052936,94535.0,94530.0,0.01063913]
[1734914567585,0.052936,94535.0,94534.0,0.009]
[1734914568187,0.05294,94528.0,94527.0,0.0006]
[1734914568382,0.052943,94523.0,94522.0,9.168e-05]